Cogmind - Beta 15 @@@ ROGUE MODE // 2025.07.05 @ 22:00:48 Player: Nyannie Result: Destroyed by G-34 Mercenary with Small Laser Performance ------------- Evolutions (1) 500 Regions Visited (2) 400 Robots Destroyed (40) 200 Value Destroyed (977) 977 Prototype IDs (1) 20 Alien Tech Used (0) 0 Bonus (0) 0 TOTAL SCORE: 2097 Bonus ------- None Cogmind --------- Core Integrity 0/400 Matter 192/300 Energy 42/100 System Corruption 4% Temperature Cool (6) Movement Core (200) Ox3 Location -9/Materials Parts ------- > --- POWER (1) -------- (None) > --- PROPULSION (2) --- (None) > --- UTILITY (3) ------ ECM Suite > --- WEAPON (3) ------- Particle Gun Heavy Assault Rifle Improved Light Cannon > --- INVENTORY (5) ---- Improved Ion Engine Peak State ------------ > --- POWER ------------ Backup Power III > --- PROPULSION ------- Backup Propulsion III Backup Propulsion III > --- UTILITY ---------- Targeting Computer Light Armor Plating > --- WEAPON ----------- Light Cannon Improved Light Cannon Improved Light Cannon > --- INVENTORY -------- Improved Ion Engine ECM Suite Small Laser [Rating: 16] Favorites ----------- Power Ion Engine Engine Ion Engine Power Core Light Nuclear Core Propulsion Aluminum Leg Treads Light Treads Leg Aluminum Leg Hover Unit Backup Propulsion III Utility Targeting Computer Device ECM Suite Storage Medium Matter Pod Processor Targeting Computer Protection Light Armor Plating Weapon Heavy Assault Rifle Energy Gun Medium Laser Ballistic Gun Heavy Assault Rifle Ballistic Cannon Improved Light Cannon Build | -11 -10 -9 ------- Run | Yrd Mat Mat Slots Evolved 2 | . . 2 Power . | . . . Propulsion . | . . . Utility 1 | . . 1 Weapon 1 | . . 1 Parts Attached 33 | 8 2 23 Power 6 | 3 . 3 Engine 5 | 3 . 2 Core 1 | . . 1 Reactor . | . . . Propulsion 7 | 2 . 5 Treads 2 | . . 2 Leg 4 | 2 . 2 Wheel . | . . . Hover 1 | . . 1 Flight . | . . . Utility 8 | 1 2 5 Device 5 | . 2 3 Storage 1 | 1 . . Processor 1 | . . 1 Hackware . | . . . Protection 1 | . . 1 Artifact . | . . . Weapon 12 | 2 . 10 Energy Gun 6 | 1 . 5 Energy Cannon . | . . . Ballistic Gun 3 | 1 . 2 Ballistic Cannon 3 | . . 3 Launcher . | . . . Special Weapon . | . . . Impact Weapon . | . . . Slashing Weapon . | . . . Piercing Weapon . | . . . Special Melee Weapon . | . . . Unidentified Prototypes 1 | . . 1 Corrupted Parts 2 | . . 2 System Corruption 4 | . . 4 Parts Lost 17 | . . 17 Power 3 | . . 3 Propulsion 4 | . . 4 Utility 4 | . . 4 Weapon 6 | . . 6 Highest Loss Streak 7 | . . 7 To Critical Strikes . | . . . Average Backups 2 | 1 3 3 Power . | . 1 . Propulsion . | . . . Utility . | . . . Weapon 1 | . 1 . Tool/Special . | . . . Unused Backups 3 | . . 3 Power 1 | . . 1 Propulsion 1 | . . 1 Utility . | . . . Weapon 1 | . . 1 Tool/Special . | . . . Average Slot Usage (%) 77 | . 95 74 Engine 6 | . 14 5 Core 2 | . . 3 Treads 5 | . . 6 Leg 9 | . 28 5 Device 14 | . 17 14 Storage 1 | . 6 . Processor 5 | . . 6 Protection 1 | . . 2 Energy Gun 15 | . 14 15 Ballistic Gun 9 | . 14 8 Ballistic Cannon 4 | . . 5 Peak Build Rating 16 | 6 7 16 Average Rating 9 | 4 6 10 On Entrance 4 | . 6 7 Naked Turns . | . . . Heaviest Build 18 | 11 12 18 Greatest Support 46 | 20 20 46 Greatest Overweight (x) 4 | . . 4 Average Overweight (x) . | . . . Largest Inventory Capacity 5 | 5 5 5 Average Capacity 5 | 5 5 5 Most Carried 5 | 3 5 5 Average Carried 2 | 1 3 3 Final Capacity 5 | 5 5 5 Final Carried 5 | 3 5 1 Class Distribution -------------------- 43% | Gunner 42% | Mutant 12% | Tank Dominant Class ---------------- Mutant | -10/Materials Gunner | -9/Materials Resources | -11 -10 -9 ----------- Run | Yrd Mat Mat Matter Collected 960 | 316 43 601 Remotely . | . . . Salvage Created 1340 | 69 115 1156 Parts 77 | 3 5 69 Haulers Intercepted . | . . . Recyclers Shooed 3 | . 1 2 Parts Field Recycled . | . . . Retrieved Matter . | . . . Parts Self-Destructed . | . . . Prevented . | . . . Kills | -11 -10 -9 ------- Run | Yrd Mat Mat Combat Hostiles Destroyed 27 | 1 2 24 Guns 24 | 1 2 21 Cannons 3 | . . 3 Classes Destroyed 10 | 2 . 8 Worker 5 | 1 1 3 Builder 1 | . . 1 Tunneler 1 | . . 1 Recycler 2 | . . 2 Mechanic 1 | . . 1 Operator 1 | . . 1 Watcher 2 | . . 2 Swarmer 7 | . . 7 Grunt 15 | 1 2 12 Sentry 5 | . . 5 Best Kill Streak 8 | 2 2 8 Combat Bots Only 7 | 1 1 7 Max Kills in Single Turn 2 | 1 1 2 Gunslinging 1 | . . 1 Exploded . | . . . Melee . | . . . Uniques/NPCs Destroyed . | . . . Combat | -11 -10 -9 -------- Run | Yrd Mat Mat Hostile Shots Fired 273 | 11 21 241 Missed 87 | 5 9 73 Hits 186 | 6 12 168 Projectile 186 | 6 12 168 Critical Strikes 4 | . 1 3 Damage Taken 2181 | 66 154 1961 Core 460 | 11 42 407 Absorbed by Shields 79 | . . 79 Core Remaining (%) 86 | 95 78 . Volleys Fired 106 | 8 15 83 Largest 3 | 2 2 3 Hottest 135 | 70 70 135 Shots Fired 255 | 16 29 210 Gun 214 | 16 29 169 Cannon 41 | . . 41 Launcher . | . . . Special . | . . . Kinetic 120 | 8 15 97 Thermal 115 | 8 14 93 Explosive . | . . . Electromagnetic 20 | . . 20 Robot Hit Streak 8 | 3 5 8 Robot Miss Streak 4 | 4 2 4 Penetration Max . | . . . Secondary Targets 8 | . . 8 Max Gunslinging Chain 1 | . . 1 Shots Hit Robots 148 | 7 20 121 Core Hits 57 | 3 7 47 Critical Kills . | . . . Critical Parts Destroyed 1 | . 1 . Critical Strikes 12 | 1 3 8 Burn 10 | 1 2 7 Destroy 1 | . 1 . Blast 1 | . . 1 Melee Attacks . | . . . Impact . | . . . Slashing . | . . . Piercing . | . . . Sneak Attacks . | . . . Combat Hostiles . | . . . Follow-up Attacks . | . . . Damage Inflicted 2466 | 90 262 2114 Guns 1916 | 90 262 1564 Cannons 435 | . . 435 Explosions 101 | . . 101 Melee . | . . . Ramming 14 | . . 14 Kinetic 1177 | 40 174 963 Thermal 1104 | 50 88 966 Explosive . | . . . Electromagnetic 171 | . . 171 Impact . | . . . Slashing . | . . . Piercing . | . . . Highest Corruption 4 | . . 4 Average Corruption 3 | . . 3 Corruption Purged . | . . . Corruption Blocked . | . . . Effects 21 | . . 21 Message Errors 4 | . . 4 Matter Fused 4 | . . 4 Heat Flow Errors 2 | . . 2 Energy Discharges 2 | . . 2 Parts Rejected 1 | . . 1 Parts Fused 1 | . . 1 Data Loss (minor) 2 | . . 2 Data Loss (major) 1 | . . 1 Misfires 4 | . . 4 Overload Shots . | . . . Overflow Damage . | . . . Projectiles . | . . . Explosions . | . . . Melee . | . . . Knockbacks 1 | . . 1 Impact . | . . . Kinetic 1 | . . 1 Secondary . | . . . Self-Inflicted Damage . | . . . Shots . | . . . Rammed 8 | . . 8 Targets Rammed 12 | 1 . 11 Kicked 2 | 1 . 1 Crushed 2 | . . 2 Highest Temperature 609 | 66 20 609 Average Temperature 116 | 28 8 127 Received Heat Transfer 974 | 36 108 830 Effects 12 | . . 12 Shutdowns 4 | . . 4 Interference 3 | . . 3 Matter Decay 4 | . . 4 Damage (minor) 1 | . . 1 Siege Activations . | . . . Martial Activations . | . . . Shielding Activations . | . . . Robots Disrupted . | . . . Combat Hostiles . | . . . Robots Corrupted . | . . . Combat Hostiles . | . . . Parts Fried . | . . . Impact Corruptions . | . . . Robots Melted . | . . . Combat Hostiles . | . . . Parts Melted 4 | . . 4 Heat Transferred 3395 | 222 407 2766 Parts Sabotaged . | . . . Parts Stolen . | . . . Parts Stripped . | . . . Power Chain Reactions 3 | . . 3 Alert | -11 -10 -9 ------- Run | Yrd Mat Mat Maximum Alert Level . | . . . Low Security (%) 100 | 100 100 100 Level 1 . | . . . Level 2 . | . . . Level 3 . | . . . Level 4 . | . . . Level 5 . | . . . High Security . | . . . Max Security . | . . . Peak Influence 186 | 25 35 186 Initial 3 | . 3 . Average 73 | 4 8 93 Influence Increases 861 | 25 55 781 Destroy 0b10 Robot/C 540 | 20 40 480 Destroy 0b10 Robot/NC 65 | 5 5 55 Destroy Leader 134 | . 10 124 Successful Hack 16 | . . 16 Disable Machine 45 | . . 45 Destroy Structure 16 | . . 16 Lose Combat Pursuer 45 | . . 45 Influence Decreases 706 | 20 60 626 Entered New Map 2 | . 2 . Time Decay 534 | 20 58 456 Lost Part 170 | . . 170 Squads Dispatched 4 | . . 4 Investigation 1 | . . 1 Extermination . | . . . Reinforcement 3 | . . 3 Assault . | . . . Garrison . | . . . Intercept . | . . . Searches Triggered . | . . . Construction Impeded . | . . . Haulers Reinforced . | . . . Active Scanning Responses . | . . . Cargo Convoy Interrupts . | . . . Stealth | -11 -10 -9 --------- Run | Yrd Mat Mat Distress Signals 3 | . . 3 Communications Jammed . | . . . Distress Signals . | . . . Times Spotted 49 | 1 5 43 Peak Tracking Total 7 | 1 2 7 Tactical Retreats 4 | . . 4 Traps | -11 -10 -9 ------- Run | Yrd Mat Mat Traps Triggered . | . . . Indirectly . | . . . Trap Hack Attempts . | . . . Triggered . | . . . Disarmed . | . . . Reprogrammed . | . . . Reused . | . . . Traps Extracted . | . . . Installed . | . . . Triggered . | . . . Machines | -11 -10 -9 ---------- Run | Yrd Mat Mat Machines Disabled 3 | . . 3 Max in Single Turn 2 | . . 2 Machines Repaired . | . . . Machines Dismantled . | . . . Machines Sabotaged . | . . . Overloaded Fab Kills . | . . . Hacking | -11 -10 -9 --------- Run | Yrd Mat Mat Machines Accessed 2 | . . 2 Terminals 1 | . . 1 Fabricators . | . . . Repair Stations 1 | . . 1 Recycling Units . | . . . Scanalyzers . | . . . Garrison Access . | . . . Total Hacks 8 | . . 8 Successful 3 | . . 3 Failed 5 | . . 5 Catastrophic . | . . . Database Lockouts . | . . . Manual . | . . . Terminals 3 | . . 3 Fabricators . | . . . Repair Stations 5 | . . 5 Recycling Units . | . . . Scanalyzers . | . . . Garrison Access . | . . . Terminal Hacks 2 | . . 2 Emergency Access Points 1 | . . 1 Alert Level 1 | . . 1 Fabricator Hacks . | . . . Repair Station Hacks 1 | . . 1 Refit 1 | . . 1 Recycling Unit Hacks . | . . . Scanalyzer . | . . . Garrison Access Hacks . | . . . Unauthorized Hacks . | . . . Terminals . | . . . Fabricators . | . . . Repair Stations . | . . . Recycling Units . | . . . Scanalyzers . | . . . Garrison Access . | . . . Data Cores Recovered . | . . . Used . | . . . Hacking Detections 1 | . . 1 Full Trace Events 1 | . . 1 Feedback Events . | . . . Feedback Blocked . | . . . Robot Schematics Acquired . | . . . Robots Built . | . . . Authchips . | . . . Time . | . . . Total Robot Build Rating . | . . . Part Schematics Acquired . | . . . Parts Built . | . . . Authchips . | . . . Time . | . . . Total Part Build Rating . | . . . Parts Repaired . | . . . Time . | . . . Parts Recycled . | . . . Recycled Matter . | . . . Retrieved Matter . | . . . Retrieved Components . | . . . Parts Scanalyzed . | . . . Part Schematics Acquired . | . . . Parts Damaged . | . . . Bothacking | -11 -10 -9 ------------ Run | Yrd Mat Mat Used RIF Installer . | . . . Robots Hacked . | . . . Non-combat . | . . . Combat . | . . . Robot Hacks Applied . | . . . Relay Couplers Released . | . . . Fabnet Peak Effective % . | . . . Robots Rewired . | . . . Allies Hacked . | . . . Hacks Repelled . | . . . Allies | -11 -10 -9 -------- Run | Yrd Mat Mat Total Allies . | . . . Largest Group . | . . . Highest-Rated Group . | . . . Highest-Rated Ally . | . . . Total Orders . | . . . Ally Attacks . | . . . Total Damage . | . . . Kills . | . . . Allies Corrupted . | . . . Allies Melted . | . . . Intel | -11 -10 -9 ------- Run | Yrd Mat Mat Active Infowar (turns) 1101 | . 127 974 Sensors 452 | . 127 325 ECM 649 | . . 649 Robot Analysis Total . | . . . Derelict Logs Recovered . | . . . Drone Launches . | . . . Drone Recoveries . | . . . Exploration | -11 -10 -9 ------------- Run | Yrd Mat Mat Turns Passed 1655 | 156 228 1271 Spaces Moved 873 | 110 147 616 Core 91 | 27 . 64 Treads 325 | . . 325 Legs 403 | 83 147 173 Wheels . | . . . Hover 54 | . . 54 Flight . | . . . Fastest Speed 50 | 50 120 76 Average Speed 138 | 102 120 149 Slowest Speed 250 | 120 120 250 Overloaded Moves . | . . . Propulsion Burnouts . | . . . Robots Hopped . | . . . Potential Cave-ins . | . . . Cave-ins Triggered . | . . . Exploration Rate (%) 25 | 6 28 43 Regions Visited 2 Branch Regions . Pre-discovered Areas . | . . . Known Exits Taken . | . . . Unknown Exits Taken 2 | 1 1 . Scrap Searched . | . . . Spaces Dug . | . . . Terrain Destroyed 16 | . . 16 Melee . | . . . Projectile . | . . . AOE 16 | . . 16 Terrain Rammed . | . . . Walls Destroyed . | . . . Machines Disabled . | . . . Actions | -11 -10 -9 --------- Run | Yrd Mat Mat Total 1101 | 135 170 796 Wait 23 | . . 23 Move 871 | 109 146 616 Hop . | . . . Pick Up 37 | 9 5 23 Fast Attach . | . . . Attach 25 | 6 1 18 Detach 2 | . . 2 Swap 12 | 2 1 9 Drop 12 | . 2 10 Fire 106 | 8 15 83 Melee . | . . . Ram 1 | . . 1 Kick 2 | 1 . 1 Crush 9 | . . 9 Escape Stasis . | . . . Rewire 1 | . . 1 Trap . | . . . Miscellaneous . | . . . Route ------- -11/Scrapyard -10/Materials (discovered 2 exits: *Mat / [*Min]) -9/Materials (discovered 1 exit: [*Min]) History --------- Turn | Location | Event 2 | -11/Scrapyard | Met Revision 17 74 | -11/Scrapyard | Discovered new exit (range 8) 157 | -11/Scrapyard | Entered Materials 186 | -10/Materials | Discovered new exit (range 16) 300 | -10/Materials | Build established: Mutant 331 | -10/Materials | Discovered new exit (range 13) 385 | -10/Materials | Entered another Materials area 385 | -9/Materials | Evolved 2 slots: Utility x1, Weapon x1 687 | -9/Materials | Lost 3 parts (1p1u1w) 1037 | -9/Materials | Build established: Gunner 1252 | -9/Materials | Destroyed 7 combat bots 1274 | -9/Materials | Discovered new exit (range 13) 1381 | -9/Materials | Core integrity fell below 50% 1460 | -9/Materials | Lost 3 parts (2n1u) 1580 | -9/Materials | Core integrity fell below 20% 1646 | -9/Materials | Lost 7 parts (1p2n2u2w) 1656 | -9/Materials | Destroyed by G-34 Mercenary with Small Laser Last Messages --------------- 01575_ U-05 Engineer works on Integration Channel. 01576_ System corrupted: Imp. Light Cannon rejected. 01576_ Backup Propulsion III destroyed. 01580_ K-01 Serf collects debris. 01581_ Integration Channel disabled. 01582_ Targeting Computer destroyed. 01605_ System corrupted: FCS attempts to trigger Hvy. Assault Rifle. 01605_ System corrupted: Hvy. Assault Rifle misfires. 01605_ Critical hit (Burn: +37). 01610_ Backup Propulsion III destroyed. 01614_ Backup Power III destroyed. 01615_ Sml. Laser destroyed. 01616_ G-47 Trooper destroyed. 01622_ Acquired Particle Gun. 01624_ Y-45 Defender destroyed. 01633_ K-01 Serf collects debris. 01642_ R-06 Scavenger collects Imp. Ion Engine. 01644_ K-01 Serf collects debris. 01645_ R-06 Scavenger collects Heat Sink. 01651_ K-01 Serf collects debris. Map ----- +----------------------------------------------------+ | ############%## ==#?????????????????????????? | | ???????????#=## = #?????????????????????????? | | ????########+## == #?????????????????????????? | | ????# % ##########?????????????????????????? | | ????# #??????????????????????? ????????? | | ????# """ """ #??????????????????????# #???????? | | ????# """ """ #??????????????????????# #???????? | | ????# """ """ #??????????????????????# #???????? | | ##??# #??????????????????????# #???????? | | ? ?# #??????????????????????# #???????? | | ?# % #######??????????####### #???????? | | " ##+#####+## ?###???/## % ######### | | "" # ?? % ! | | "" + < *% | | "" # """"" %""""" % | | ????# """ ## ?# """"""""" """""""" | | ????# """ #??"!"|"??# """ "" % """ """ | | ????# """ #???!"|"??# % | | ????# #????##???# | | ????# %!##????????# ] | | ????# #% *#???????########### | | ????# # %######### ! # # | | ????+ # g ! # " ######## | | ????# # ## # ! +%"T #??????? | | ????# # ## # % #% #???????? | | ????# ######## +% @ # #???????? | | ????# #??????# ###### ## ##????????? | | ???? +??????# #????# " "" ## #?????????? | | ???? #??????# #????# "R"" ## #???????????## | | ??? #??????# #????#% """" ## #????????????? | | ??? ###??????# #????#%######### ????????????? | | ??! ?????????# ?????###???????### ##???????????? | | ??? ?????????# ?????????????????# #????????????? | | ????# ?????????# ?????????????????# #????????????? | | ???????????????# ?????????????????# #????????????? | | ???????????????? ?????????????????? #????????????? | | ???????????????? ?????????????????? #????????????? | | ???????????????? ?????????????????? ?????????????? | | ??????????????????????????????????? ?????????????? | | ??????????????????????????????????? ?????????????? | | ?????????????????????????????????????????????????? | | ?????????????????????????????????????????????????? | | ?????????????????????????????????????????????????? | | ?????????????????????????????????????????????????? | | ?????????????????????????????????????????????????? | | ?????????????????????????????????????????????????? | | ?????????????????????????????????????????????????? | | ?????????????????????????????????????????????????? | | ?????????????????????????????????????????????????? | | ?????????????????????????????????????????????????? | +----------------------------------------------------+ Best States ------------- Heat Dissipation 38 Energy Generation 14 Energy Capacity 265 Matter Stores 400 Matter Capacity 400 Sight Range 16 Robot Scan Range 14 Terrain Scan Density 10 ECM Strength 1 Additional Mass Support 6 Armor Coverage 150 Evasion (%) 55 Targeting Accuracy 5 Recoil Reduction 2 Item Schematics ----------------- None Robot Schematics ------------------ None Fabricated ------------ Nothing Repaired ---------- Nothing Alien Tech Used ----------------- None Achievements -------------- None Challenges ------------ None Game ------ Seed AngularOmegaDatajack Manual? 0 Play Time 00:21:59 Cumulative 1.4 hours Start 2025.07.05 @ 21:40:13 End 2025.07.05 @ 22:00:48 Sessions 1 Manual Loads 0 Difficulty Rogue Special Mode None Game No. 3 Rogue 3 Adventurer 0 Explorer 0 Win Type - Total 0 Types 0/0/0/0/0/0/0/0/0/0 Lore% 0 Gallery% 3 Achievement% 3 Wizard Run 0 Options --------- Layout 0 ASCII 0 Keyboard 1 Movement Arrows Keybinds 0 Fullscreen 1 Font 18/SmallcapsGlow Map View 76x50 Zoom Use 0% Tactical HUD 1 Map Filters NONE Filters NONE Steam 1 RUN: 8b319776-50c1-43be-b1ab-72e5d8360468